bitfinex/quotes_ETHUSD_20250511
["timestamp","ask_amount","ask_price","bid_price","bid_amount"]
[1746937116022,4.67605678,2542.1,2541.8,1.70159136]
[1746937116253,4.67605678,2542.1,2541.9,8.0393366]
[1746937117253,4.67605678,2542.1,2541.9,8.0]
[1746937118254,4.67605678,2542.1,2542.0,2.918]
[1746937120160,4.67605678,2542.1,2541.9,8.0]
[1746937120366,4.67605678,2542.1,2542.0,6.99016923]
[1746937121267,4.67605678,2542.1,2542.0,1.16416923]
[1746937121455,4.67605678,2542.1,2541.9,10.907]
[1746937121873,4.67605678,2542.1,2541.6,0.55]
[1746937122062,4.67605678,2542.1,2541.8,8.55]
[1746937122568,4.67605678,2542.1,2541.5,8.7721]
[1746937122757,0.8194,2542.0,2541.5,4.16183103]
[1746937123078,0.8194,2542.0,2541.5,9.25583103]
[1746937123233,4.67605678,2541.9,2541.5,8.0]
[1746937125491,4.67605678,2541.9,2541.5,8.03934549]
[1746937126080,4.67605678,2541.9,2541.5,8.0]
[1746937127469,4.67605678,2541.8,2541.5,8.0]
[1746937127641,4.67605678,2541.8,2541.5,9.5908619]
[1746937130192,4.67605678,2541.8,2541.5,15.3978619]
[1746937141937,4.67605678,2541.8,2541.6,10.25159136]
[1746937142101,4.67605678,2541.8,2541.6,10.29093301]
[1746937142936,4.67605678,2542.2,2541.6,10.29093301]
[1746937143264,4.67605678,2542.2,2542.1,0.55]
[1746937143461,0.8245,2542.9,2542.1,15.1792]
[1746937143663,0.8245,2542.9,2542.5,1.70159136]
[1746937143664,5.50055678,2542.9,2542.5,1.70159136]
[1746937143878,5.50055678,2542.9,2542.6,0.03932543]
[1746937144427,0.8245,2543.3,2542.9,0.55]
[1746937144656,5.50055678,2543.3,2543.0,0.80878776]
[1746937144830,4.67605678,2543.2,2542.8,8.0]
[1746937145028,0.8245,2543.1,2542.8,8.0]
[1746937145465,0.8245,2543.1,2542.4,8.55]
[1746937145763,4.67605678,2543.0,2542.7,10.895]
[1746937145961,4.67605678,2543.0,2542.7,12.27883261]
[1746937147495,4.67605678,2543.0,2542.7,1.38383261]
[1746937147671,4.67605678,2543.0,2542.6,10.893]
[1746937147830,4.67605678,2543.0,2542.6,8.0]
[1746937148166,4.67605678,2543.0,2542.6,10.893]
[1746937148330,4.67605678,2543.0,2542.7,0.03932606]
[1746937148537,4.67605678,2543.0,2542.6,10.893]
[1746937148731,4.67605678,2543.0,2542.7,1.54975914]
[1746937151058,4.67605678,2543.0,2542.7,1.58908412]
[1746937151939,4.67605678,2543.0,2542.7,1.54975914]
[1746937152557,4.67605678,2543.0,2542.7,1.87825078]
[1746937152741,4.67605678,2543.0,2542.8,0.55]
[1746937152941,4.67605678,2543.2,2542.9,10.11457557]
[1746937153142,4.67605678,2543.2,2542.9,10.15389554]
[1746937153472,4.67605678,2543.2,2543.0,0.58931974]
[1746937153681,4.67605678,2543.2,2543.0,0.55]
[1746937154647,4.67605678,2543.2,2542.9,0.41298421]
[1746937154845,4.67605678,2543.2,2543.0,2.889]
[1746937154846,5.49065678,2543.2,2543.0,2.889]
[1746937155639,5.49065678,2543.2,2542.7,1.83892683]
[1746937155863,5.49065678,2543.2,2542.8,2.889]
[1746937157470,4.67605678,2543.1,2542.7,1.87825083]
[1746937157679,5.42835678,2543.0,2542.3,2.903]
[1746937157875,4.67605678,2542.9,2542.3,5.79]
[1746937158207,4.67605678,2542.9,2542.4,8.0]
[1746937159645,4.67605678,2542.9,2542.6,2.25159136]
[1746937159954,0.7523,2543.4,2542.8,10.25159136]
[1746937160155,0.7523,2543.4,2543.0,0.55]
[1746937160378,5.42835678,2543.4,2543.0,0.55]
[1746937161883,5.42835678,2543.4,2543.0,1.3528]
[1746937162945,4.67605678,2543.4,2543.0,1.3528]
[1746937163167,4.67605678,2543.4,2543.1,0.71258]
[1746937164179,0.7523,2543.3,2543.0,0.38]
[1746937166493,4.67605678,2543.2,2543.0,0.38]
[1746937167377,4.67605678,2543.2,2543.0,8.38]
[1746937167563,4.67605678,2543.2,2543.0,0.38]
[1746937167764,0.7523,2543.1,2543.0,0.38]
[1746937168708,5.42835678,2543.1,2543.0,0.38]
[1746937172318,4.67605678,2543.1,2543.0,0.38]
[1746937175482,5.42835678,2543.1,2543.0,0.38]
[1746937177077,5.64878289,2543.1,2543.0,0.38]
[1746937180393,9.58099161,2543.1,2543.0,0.38]
[1746937180590,5.64878289,2543.1,2543.0,0.38]
[1746937183502,0.22042611,2543.1,2543.0,12.024]
[1746937183843,4.67605678,2543.3,2543.0,4.91525914]
[1746937184055,4.67605678,2543.3,2543.1,8.0]
[1746937184207,4.67605678,2543.3,2543.0,3.254]
[1746937184539,4.67605678,2543.3,2543.0,0.38]
[1746937185449,4.67605678,2543.3,2543.0,9.15]
[1746937186140,4.67605678,2543.3,2543.0,1.15]
[1746937186353,4.67605678,2543.3,2543.1,0.915]
[1746937192055,4.67605678,2543.3,2543.2,8.55]
[1746937194262,4.67605678,2544.3,2543.5,0.55]
[1746937194426,4.67605678,2544.3,2543.6,1.6277]
[1746937194627,4.67605678,2544.3,2543.7,6.289]
[1746937194828,5.45575678,2544.3,2543.7,6.289]
[1746937195264,5.45575678,2544.3,2543.7,0.55]
[1746937195474,5.45575678,2544.3,2543.9,8.0]
[1746937195771,5.45575678,2544.3,2543.8,5.737]
[1746937195951,5.45575678,2544.3,2543.8,6.47347]
[1746937197144,5.45575678,2544.3,2543.8,3.60347]
[1746937197346,5.45575678,2544.3,2543.6,0.855]
[1746937197645,7.15734814,2544.3,2543.6,5.736]
[1746937198277,7.15734814,2544.3,2543.7,8.0]
[1746937198986,5.45575678,2544.3,2543.7,8.0]
[1746937199596,4.67605678,2544.2,2543.7,8.0]
[1746937200593,4.67605678,2544.2,2543.8,0.55]
[1746937200793,4.67605678,2544.2,2543.9,0.8982366]
[1746937201373,4.67605678,2544.2,2543.9,0.85893105]
[1746937202284,5.50315678,2544.2,2543.9,5.734]
[1746937203599,5.50315678,2544.2,2543.7,0.55]
[1746937203786,5.50315678,2544.2,2543.9,8.0]
[1746937204192,4.67605678,2544.2,2543.9,8.0]
[1746937204798,4.67605678,2544.2,2543.9,8.03930762]
[1746937205004,4.67605678,2544.2,2544.0,1.37723076]
[1746937206319,4.67605678,2544.2,2543.3,1.70159136]
[1746937206495,0.8271,2544.1,2543.3,5.731]
[1746937206692,4.67605678,2544.0,2543.4,8.0]
[1746937206893,0.8271,2543.9,2543.4,8.0]
[1746937207095,0.8271,2543.9,2543.3,5.731]
[1746937207482,0.8271,2543.9,2543.2,2.87]
[1746937207907,0.8271,2543.9,2543.2,3.5608]
[1746937208430,0.8271,2543.9,2543.3,8.0]
[1746937209118,1.70159136,2543.9,2543.0,0.38]
[1746937209325,0.8271,2543.8,2543.0,6.11]
[1746937209530,0.8271,2543.8,2543.1,8.0]
[1746937210194,0.8271,2543.6,2543.0,3.9407]
[1746937210395,4.67605678,2543.5,2543.1,8.0]
[1746937211022,4.67605678,2543.5,2543.0,1.0707]
[1746937211224,4.67605678,2543.5,2543.0,0.38]
[1746937211685,4.67605678,2543.5,2543.0,0.4193208]
[1746937212013,4.67605678,2543.5,2543.0,0.38]
[1746937212385,4.67605678,2543.5,2543.0,0.41931957]
[1746937213280,4.67605678,2543.5,2543.0,2.12091093]
[1746937213488,4.67605678,2543.5,2543.2,2.25159136]
[1746937213691,4.67605678,2543.5,2543.2,10.29090652]
[1746937214433,4.67605678,2543.5,2543.3,0.8001]
[1746937214637,4.67605678,2543.5,2543.4,5.727]
[1746937214792,4.67605678,2543.5,2543.4,15.42859136]
[1746937215143,4.67605678,2543.5,2543.4,17.1064605]
[1746937215335,4.67605678,2543.5,2543.4,9.67786914]
[1746937215635,4.67605678,2543.5,2543.4,13.727]
[1746937217697,4.67605678,2543.5,2543.4,8.0]
[1746937222580,4.67605678,2543.5,2543.4,8.58931467]
[1746937223036,4.67605678,2543.5,2543.4,8.55]
[1746937223423,4.67605678,2543.9,2543.5,8.55]
[1746937223618,4.67605678,2543.9,2543.6,1.75324101]
[1746937224544,4.67605678,2543.9,2543.6,1.71393128]
[1746937224865,4.67605678,2543.9,2543.5,0.55]
[1746937225148,4.67605678,2543.9,2543.4,8.0]
[1746937229365,4.67605678,2543.8,2543.4,8.0]
[1746937230859,4.67605678,2543.8,2543.5,0.03931426]
[1746937231064,4.67605678,2543.8,2543.6,1.3095]
[1746937232079,4.67605678,2543.8,2543.6,0.7595]
[1746937232378,4.67605678,2543.8,2543.6,1.6067363]
[1746937233039,4.67605678,2543.8,2543.6,0.8472363]
[1746937234299,4.67605678,2544.2,2544.0,0.7595]
[1746937234491,4.67605678,2544.2,2544.1,14.2913026]
[1746937234693,4.67605678,2544.2,2544.1,16.11046541]
[1746937235278,4.67605678,2544.7,2544.2,0.8022]
[1746937235589,0.7997,2545.1,2544.3,3.405]
[1746937235790,0.7997,2545.1,2544.4,8.03929722]
[1746937236205,4.67605678,2545.6,2544.9,0.8022]
[1746937236413,5.47575678,2545.5,2545.0,5.701]
[1746937236702,5.47575678,2545.5,2545.1,8.0]
[1746937237506,5.47575678,2545.5,2545.0,2.846]
[1746937237690,0.7997,2545.4,2545.1,8.0]
[1746937238013,0.7997,2545.4,2545.0,2.846]
[1746937239713,0.7997,2545.4,2545.1,8.0]
[1746937240608,4.67605678,2545.5,2545.1,8.0]
[1746937242169,4.67605678,2545.5,2545.0,4.216]
[1746937244531,4.67605678,2545.5,2545.2,1.69685048]
[1746937244834,4.67605678,2545.5,2545.1,8.58928659]
[1746937244999,4.67605678,2545.5,2545.2,1.45021371]
[1746937252212,0.8214,2545.4,2545.1,8.0]
[1746937252439,0.8214,2545.4,2545.3,8.0]
[1746937253521,0.8214,2545.3,2544.6,2.839]
[1746937253722,0.8214,2545.1,2544.6,2.839]
[1746937253923,0.8214,2545.1,2544.6,4.8203]
[1746937254327,0.8214,2545.1,2544.7,8.0]
[1746937254528,4.67605678,2545.0,2544.4,5.676]
[1746937254730,0.8214,2545.1,2544.4,5.676]
[1746937254731,4.67605678,2544.9,2544.4,5.676]
[1746937254919,4.67605678,2544.9,2544.1,8.8277]
[1746937255119,4.67605678,2544.9,2544.1,0.8277]
[1746937255326,4.67605678,2544.9,2544.3,8.0]
[1746937255543,4.67605678,2544.9,2544.4,1.3676]
[1746937255751,4.67605678,2544.9,2544.3,8.0]
[1746937256667,4.67605678,2544.9,2544.5,0.8114]
[1746937256965,4.67605678,2544.9,2544.6,0.03929422]
[1746937258823,4.67605678,2544.9,2544.5,0.8114]
[1746937259060,4.67605678,2544.9,2544.4,0.55]
[1746937259262,4.67605678,2544.9,2544.5,6.61014]
[1746937261264,4.67605678,2544.9,2544.6,8.0]
[1746937261459,4.67605678,2544.9,2544.1,1.3614]
[1746937261460,0.8176,2544.8,2544.1,8.8114]
[1746937261663,0.8176,2544.8,2544.5,8.0]
[1746937262079,4.67605678,2544.7,2544.4,5.673]
[1746937262429,4.67605678,2544.7,2544.5,8.0]
[1746937265242,4.67605678,2544.7,2544.5,7.99999845]
[1746937266660,4.67605678,2544.7,2544.5,9.3671983]
[1746937267476,4.67605678,2544.7,2544.5,7.99999845]
[1746937269266,4.67605678,2544.7,2544.0,1.69685048]
[1746937269267,0.7694,2544.6,2544.0,1.69685048]
[1746937269495,1.69685048,2544.2,2543.5,0.8044]
[1746937269779,5.44545678,2544.1,2543.5,3.6354]
[1746937269996,5.44545678,2544.1,2543.6,0.64744]
[1746937270286,5.44545678,2544.1,2543.6,8.68675022]
[1746937270446,5.44545678,2544.1,2543.6,10.3836007]
[1746937270646,5.44545678,2544.1,2543.7,0.55]
[1746937270647,4.67605678,2544.1,2543.7,0.55]
[1746937270958,4.67605678,2544.1,2543.8,0.03930713]
[1746937271315,4.67605678,2544.1,2543.8,1.13266689]
[1746937271585,4.67605678,2544.1,2543.7,0.55]
[1746937274443,0.7694,2544.0,2543.6,8.64744]
[1746937274985,0.7694,2544.0,2543.8,8.0]
[1746937276015,0.7694,2544.0,2543.7,10.828]
[1746937277025,4.67605678,2544.1,2543.8,1.69685048]
[1746937277215,4.67605678,2544.1,2543.9,1.32805505]
[1746937278205,4.67605678,2544.1,2544.0,1.69685048]
[1746937278401,4.67605678,2544.1,2544.0,11.04185641]
[1746937278718,4.67605678,2544.1,2544.0,11.00255048]
[1746937279125,4.42033492,2544.6,2544.1,0.55]
[1746937279330,4.42033492,2544.8,2544.4,1.69685048]
[1746937279627,4.42033492,2544.8,2544.5,2.86629574]
[1746937280418,4.42033492,2544.8,2544.6,8.0]
[1746937280631,4.42033492,2544.8,2544.7,1.3057]
[1746937280832,4.42033492,2545.3,2544.7,1.3057]
[1746937280998,4.42033492,2545.3,2544.9,8.0]
[1746937281183,4.42033492,2545.3,2545.0,1.69685048]
[1746937281528,4.42033492,2545.3,2545.2,8.0]
[1746937282308,4.42033492,2545.3,2544.7,1.3057]
[1746937282512,4.42033492,2545.3,2544.4,3.52898703]
[1746937282513,0.7901,2545.2,2544.8,5.651]
[1746937283333,4.42033492,2545.3,2544.9,9.34969215]
[1746937283514,4.42033492,2545.3,2545.1,8.55]
[1746937283716,4.42033492,2545.3,2545.1,8.58928653]
[1746937285396,4.42033492,2545.3,2545.1,8.03928653]
[1746937285601,5.21043492,2545.3,2545.2,13.649]
[1746937286308,5.21043492,2545.3,2545.2,5.649]
[1746937286498,5.21043492,2545.3,2545.1,8.0]
[1746937286927,5.21043492,2545.3,2544.9,0.55]
[1746937287540,0.7548,2545.2,2545.0,8.0]
[1746937288031,0.7548,2545.2,2544.9,5.649]
[1746937288222,3.9289749,2545.2,2544.6,5.648]
[1746937288433,0.7548,2545.0,2544.6,5.648]
[1746937288626,4.42033492,2544.9,2544.5,5.648]
[1746937288998,4.42033492,2544.9,2544.6,8.0]
[1746937291209,4.42033492,2544.9,2544.6,8.81039695]
[1746937291729,4.42033492,2544.9,2544.7,0.55]
[1746937291930,4.42033492,2545.2,2544.9,0.55]
[1746937293053,4.42033492,2545.2,2544.7,0.55]
[1746937293207,4.42033492,2545.2,2544.8,2.82]
[1746937295058,4.42033492,2545.2,2544.8,2.85929143]
[1746937295242,4.42033492,2545.2,2544.9,8.55]
[1746937295531,4.42033492,2545.2,2545.0,0.03928872]
[1746937295739,4.42033492,2545.2,2545.1,2.826]
[1746937295900,4.42033492,2545.2,2545.1,3.9636]
[1746937296347,0.7554,2545.8,2545.1,12.7489]
[1746937296533,4.42033492,2545.7,2545.2,0.03928496]
[1746937299156,4.42033492,2545.7,2545.1,4.7489]
[1746937299540,4.42033492,2545.7,2545.2,8.0]
[1746937299739,4.42033492,2545.7,2545.2,10.817]
[1746937301159,4.42033492,2545.7,2545.2,10.816]
[1746937301457,4.42033492,2545.6,2545.2,10.816]
[1746937302249,4.42033492,2545.6,2545.2,11.6013]
[1746937302427,4.42033492,2545.6,2545.2,13.04403]
[1746937305952,4.42033492,2545.6,2545.2,8.0]
[1746937306159,4.42033492,2545.6,2545.4,8.0]
[1746937307362,4.42033492,2545.5,2545.2,10.813]
[1746937309601,4.42033492,2545.5,2545.3,0.7868]
[1746937309997,4.42033492,2545.5,2545.2,10.813]
[1746937310196,4.42033492,2545.5,2545.2,12.25548]
[1746937310397,4.42033492,2545.5,2545.4,8.0]
[1746937311193,5.18713492,2545.5,2545.4,8.0]
[1746937312289,5.18713492,2545.5,2545.2,2.812]
[1746937312457,5.18713492,2545.5,2545.1,10.811]
[1746937312653,5.18713492,2545.5,2544.9,0.7868]
[1746937312858,5.18713492,2545.5,2545.1,8.0]
[1746937313061,5.18713492,2545.5,2545.1,5.623]
[1746937313597,4.42033492,2545.4,2545.1,7.35896192]
[1746937313778,4.42033492,2545.4,2545.2,0.8267]
[1746937314454,4.42033492,2545.4,2545.2,8.8267]
[1746937314655,4.42033492,2545.4,2545.3,1.61856619]
[1746937318460,4.42033492,2545.4,2545.3,4.42656619]
[1746937319294,4.42033492,2545.4,2545.3,1.61856619]
[1746937319473,4.42033492,2545.4,2545.3,2.808]
[1746937319681,4.42033492,2545.4,2545.0,8.7923]
[1746937319869,4.42033492,2545.4,2545.1,5.62]
[1746937320288,4.42033492,2545.4,2545.1,5.65928801]
[1746937320488,4.42033492,2545.4,2545.2,1.4451588]
[1746937324808,3.92563697,2547.4,2545.3,9.6966724]
[1746937324809,4.42033492,2545.7,2545.3,9.6966724]
[1746937324978,4.42033492,2545.7,2545.3,8.0]
[1746937325684,0.7924,2545.6,2545.3,8.0]
[1746937325879,0.7924,2545.6,2545.2,2.805]
[1746937326079,0.7924,2545.6,2545.3,8.0]
[1746937326719,0.8185,2545.4,2544.4,0.775]
[1746937326914,0.8185,2545.1,2544.3,2.812]
[1746937327217,0.8185,2545.1,2544.4,0.2812]
[1746937327385,0.8185,2544.9,2544.4,0.2812]
[1746937327577,0.8185,2544.9,2544.5,8.0]
[1746937327778,0.8185,2544.9,2544.4,3.0852]
[1746937328227,0.8185,2544.9,2544.5,8.0]
[1746937328576,0.8185,2544.9,2544.4,3.0852]
[1746937329216,0.8185,2544.9,2544.5,8.0]
[1746937330201,0.8185,2544.9,2544.5,9.38972]
[1746937330514,0.8185,2544.9,2544.4,8.0]
[1746937331438,4.42033492,2544.8,2544.4,8.0]
[1746937331592,4.42033492,2544.7,2544.4,8.0]
[1746937332312,0.7943,2544.6,2544.4,8.0]
[1746937333115,4.42033492,2544.7,2544.4,8.0]
[1746937333413,4.42033492,2544.7,2544.5,1.0812]
[1746937334113,4.42033492,2544.7,2544.4,8.0]
[1746937334481,4.42033492,2544.7,2544.4,9.73597244]
[1746937334732,0.7943,2545.3,2544.6,2.2466724]
[1746937334903,0.7943,2545.3,2544.8,8.0]
[1746937336022,0.77034957,2545.3,2544.8,8.0]
[1746937336236,4.42033492,2545.6,2544.9,1.1633]
[1746937336388,1.6966724,2546.0,2544.9,1.1633]
[1746937336389,4.42033492,2545.2,2544.9,1.1633]
[1746937336601,4.42033492,2545.2,2544.9,3.9753]
[1746937337718,4.42033492,2545.2,2545.0,8.0]
[1746937338319,4.42033492,2545.2,2544.5,0.754]
[1746937338523,4.42033492,2545.2,2544.8,10.8]
[1746937339026,0.7687,2545.1,2544.4,1.6966724]
[1746937339322,0.7687,2545.1,2544.6,8.0]
[1746937339494,0.7687,2545.1,2544.7,1.3611]
[1746937339701,0.1038451,2545.0,2544.7,1.3611]
[1746937340039,4.42033492,2544.9,2544.7,1.3611]
[1746937340523,0.10338414,2544.8,2544.7,1.3611]
[1746937342628,0.10338414,2544.8,2544.5,2.798]
[1746937342825,0.10338414,2544.8,2544.2,8.55]
[1746937343045,0.10338414,2544.8,2544.4,5.596]
[1746937343395,4.42033492,2544.7,2544.5,10.798]
[1746937343729,0.10208755,2544.6,2544.5,10.798]
[1746937344022,0.10208755,2544.6,2544.5,12.32726724]
[1746937345391,0.10208755,2544.6,2544.5,1.52926724]
[1746937345604,0.10208755,2544.6,2544.4,2.798]
[1746937345913,0.10208755,2544.6,2544.2,8.55]
[1746937346234,4.42033492,2544.6,2544.4,2.797]
[1746937346533,0.101857,2544.5,2544.4,10.797]
[1746937346743,4.52219192,2544.5,2544.4,8.0]
[1746937346919,5.29179192,2544.5,2544.4,8.0]
[1746937347729,4.52219192,2544.5,2544.4,9.0798]
[1746937348411,4.52219192,2544.5,2544.4,8.0]
[1746937349698,4.42033492,2544.5,2544.4,8.0]
[1746937349899,4.52162364,2544.5,2544.4,8.0]
[1746937351302,4.52162364,2544.5,2544.2,2.794]
[1746937351938,4.52162364,2544.5,2544.1,5.592]
[1746937352142,4.42033492,2544.4,2544.1,5.592]
[1746937352329,0.10082758,2544.3,2544.2,8.0]
[1746937352743,0.10082758,2544.3,2544.1,0.5592]
[1746937352955,0.10082758,2544.3,2544.2,8.0]
[1746937355053,0.10082758,2544.3,2544.1,8.5592]
[1746937355344,0.10082758,2544.3,2544.1,0.5592]
[1746937355553,4.42033492,2544.2,2544.1,8.5592]
[1746937357456,4.42033492,2544.2,2544.1,0.5592]
[1746937357623,4.42033492,2544.2,2544.1,8.0]
[1746937360820,4.42033492,2544.2,2544.0,2.79]
[1746937361023,4.42033492,2544.2,2544.1,8.0]
[1746937362122,4.52045324,2544.2,2544.1,8.0]
[1746937362321,0.7642,2544.1,2543.8,0.00236]
[1746937362558,0.09934293,2544.0,2543.8,0.00236]
[1746937365748,4.42033492,2544.2,2543.8,0.00236]
[1746937365955,0.09894513,2544.1,2543.8,0.00236]
[1746937367228,0.09894513,2544.1,2543.8,0.25021324]
[1746937367559,4.42033492,2544.0,2543.8,0.25021324]
[1746937367758,0.09848385,2543.9,2543.8,0.25021324]
[1746937367962,4.51881877,2543.9,2543.8,0.25021324]
[1746937368761,4.51881877,2543.9,2543.8,0.00236]
[1746937369060,4.51881877,2543.9,2543.8,10.80136]
[1746937369442,4.42033492,2543.9,2543.8,10.80136]
[1746937369763,4.51881877,2543.9,2543.8,10.80136]
[1746937370560,4.51881877,2543.9,2543.8,13.58736]
[1746937371364,0.8158,2545.7,2544.6,0.55]
[1746937371528,0.8158,2545.7,2544.5,0.7795]
[1746937371529,0.8158,2545.7,2544.8,9.6966724]
[1746937371730,0.8158,2545.7,2544.6,2.2466724]
[1746937371958,3.92793719,2545.9,2544.7,5.585]
[1746937371959,0.8158,2545.5,2544.7,5.585]
[1746937372163,0.8158,2545.5,2544.6,9.6966724]
[1746937372464,0.8158,2545.5,2544.7,5.585]
[1746937372874,0.8158,2545.5,2544.7,5.62429469]
[1746937373058,0.8158,2545.5,2544.8,1.6966724]
[1746937373371,0.8158,2546.2,2545.2,1.6966724]
[1746937373738,0.21995425,2546.1,2545.2,1.6966724]
[1746937374378,0.8158,2546.2,2545.2,1.6966724]
[1746937374560,0.08864378,2546.1,2545.4,8.0]
[1746937374748,0.08864378,2546.1,2545.5,0.7795]
[1746937374952,0.08864378,2546.1,2545.5,0.81878117]
[1746937375153,0.08864378,2546.1,2545.6,1.6966724]
[1746937375576,0.8158,2546.2,2545.6,1.6966724]
[1746937375776,0.08864378,2546.1,2545.6,1.6966724]
[1746937376859,0.08864378,2546.1,2545.5,0.7795]
[1746937377145,0.8158,2546.2,2545.5,0.7795]
[1746937377345,0.08864378,2546.1,2545.5,0.7795]
[1746937377547,0.8158,2546.2,2545.5,1.8672745]
[1746937377869,0.08864378,2546.1,2545.5,1.8672745]
[1746937378682,0.08864378,2546.1,2545.4,9.6966724]
[1746937378998,0.08864378,2546.1,2545.4,9.73595373]
[1746937379476,4.1,2546.0,2545.4,9.73595373]
[1746937379654,4.1,2546.0,2545.5,0.55]
[1746937379861,0.08818322,2545.9,2545.5,0.55]
[1746937380075,0.08818322,2545.9,2545.6,1.02466724]
[1746937380275,0.08818322,2545.9,2545.6,1.06394671]
[1746937380668,0.08818322,2545.9,2545.6,1.02466724]
[1746937380868,0.08818322,2545.9,2545.6,2.76061909]
[1746937381660,0.08818322,2545.9,2545.6,1.02466724]
[1746937382161,0.08818322,2545.9,2545.4,9.6966724]
[1746937382487,0.7609,2545.8,2545.4,8.0]
[1746937382686,0.7609,2545.8,2545.6,8.0]
[1746937382864,0.08772258,2545.7,2545.6,8.0]
[1746937383069,0.7609,2545.8,2545.6,8.0]
[1746937383264,0.7609,2545.8,2545.2,1.6966724]
[1746937383477,0.7609,2545.8,2545.3,5.87053724]
[1746937383686,0.09114664,2545.7,2545.3,5.87053724]
[1746937384063,0.7609,2545.8,2545.4,2.78]
[1746937384481,0.09114664,2545.7,2545.4,2.78]
[1746937384656,0.7609,2545.8,2545.4,2.78]
[1746937384857,0.7609,2545.8,2545.5,8.58695372]
[1746937385084,0.09114664,2545.7,2545.5,8.58695372]
[1746937385282,0.7609,2545.8,2545.5,8.58695372]
[1746937385490,0.09114664,2545.7,2545.5,8.58695372]
[1746937385863,4.8609,2545.8,2545.5,8.58695372]
[1746937386095,0.09091629,2545.6,2545.5,8.58695372]
[1746937386302,4.8609,2545.8,2545.5,8.58695372]
[1746937386675,0.09114664,2545.7,2545.5,8.58695372]
[1746937386876,4.8609,2545.8,2545.5,8.58695372]
[1746937387091,0.09114664,2545.7,2545.5,8.58695372]
[1746937387294,0.09114664,2545.7,2545.6,1.13669537]
[1746937387508,4.8609,2545.8,2545.6,1.13669537]
[1746937387807,0.09114664,2545.7,2545.6,1.13669537]
[1746937388014,4.1,2545.8,2545.6,1.13669537]
[1746937388306,0.09089257,2545.7,2545.6,1.13669537]
[1746937388522,4.1,2545.8,2545.6,1.13669537]
[1746937388725,4.1,2545.8,2545.7,0.97236491]
[1746937391373,0.7963,2546.2,2545.7,0.97236491]
[1746937391574,4.1,2546.1,2545.7,0.97236491]
[1746937394118,4.1,2546.6,2546.1,0.55]
[1746937394308,4.1,2546.6,2546.3,8.0]
[1746937394622,4.1,2546.7,2546.3,8.0]
[1746937396436,0.0860051,2546.6,2546.3,8.0]
[1746937396836,0.0860051,2546.6,2546.4,1.6966724]
[1746937396997,0.0860051,2546.6,2546.5,8.8034]
[1746937397194,0.0860051,2546.6,2546.5,9.85733426]
[1746937397521,0.0860051,2546.6,2546.5,15.41533426]
[1746937399505,0.0860051,2546.6,2546.5,14.61193426]
[1746937399699,0.0860051,2546.6,2546.5,11.83693426]
[1746937399904,0.0860051,2546.6,2546.5,14.60993426]
[1746937401433,0.0860051,2546.6,2546.5,9.05393426]
[1746937401656,0.0860051,2546.6,2546.5,5.556]
[1746937402489,0.0860051,2546.6,2546.2,2.6320124]
[1746937402692,0.7956,2546.5,2545.9,0.8262]
[1746937402999,0.7956,2546.3,2545.5,7.2516724]
[1746937403220,4.18738509,2546.2,2545.5,7.2516724]
[1746937403925,0.7956,2546.0,2545.5,5.555]
[1746937404131,0.08621628,2545.9,2545.5,5.555]
[1746937404824,0.08621628,2545.9,2545.4,5.543]
[1746937405218,0.7956,2545.8,2545.4,5.543]
[1746937405402,0.08575564,2545.7,2545.4,6.0973]
[1746937405608,4.1,2545.7,2545.4,6.0973]
[1746937405825,0.08473335,2545.6,2545.4,6.0973]
[1746937406232,4.1,2545.7,2545.4,6.0973]
[1746937407135,4.1,2545.7,2545.3,5.542]
[1746937407331,0.08474829,2545.6,2545.3,2.772]
[1746937407500,0.08474829,2545.6,2545.1,6.092]
[1746937407835,0.08474829,2545.6,2544.9,0.808]
[1746937407836,4.1,2545.5,2544.8,1.6966724]
[1746937408009,4.1,2545.5,2544.9,5.79246724]
[1746937408209,0.08428755,2545.4,2544.9,5.79246724]
[1746937409020,0.08428755,2545.4,2545.0,1.6966724]
[1746937409523,4.1,2545.5,2545.0,1.6966724]
[1746937409830,0.08428755,2545.4,2545.1,0.03928729]
[1746937410033,0.08428755,2545.4,2545.1,0.84728729]
[1746937410229,4.1,2545.5,2545.1,0.84728729]
[1746937410411,4.1,2545.5,2545.1,0.808]
[1746937410928,4.1,2545.5,2545.2,2.769]
[1746937411160,4.1,2545.5,2545.3,0.3577]
[1746937412736,0.0840783,2545.4,2545.3,0.3577]
[1746937412934,4.1,2545.5,2545.3,0.3577]
[1746937413104,0.0840783,2545.4,2545.3,0.3577]
[1746937413438,4.1,2545.5,2545.3,0.3577]
[1746937414622,4.1,2545.5,2545.3,3.1297]
[1746937414820,0.0840783,2545.4,2545.3,2.772]
[1746937415124,0.819,2545.4,2545.3,2.772]
[1746937415641,4.919,2545.4,2545.3,2.772]
[1746937415937,5.00164392,2545.4,2545.3,2.772]
[1746937419675,5.00164392,2545.4,2544.9,5.538]
[1746937419803,5.00164392,2545.4,2544.4,0.7937]
[1746937420003,4.1,2545.3,2544.5,0.43223699]
[1746937420220,0.7762,2545.1,2543.8,14.92906]
[1746937420417,0.7762,2544.9,2544.1,2.766]
[1746937420635,0.0809025,2544.8,2544.1,2.766]
[1746937420836,4.1,2544.7,2544.1,2.766]
[1746937421142,0.85617796,2544.6,2544.2,0.57428435]
[1746937422228,0.07997796,2544.6,2544.2,1.38868435]
[1746937422411,0.07997796,2544.6,2544.2,1.427985]
[1746937422619,0.07997796,2544.6,2544.3,3.52866985]
[1746937423227,0.07997796,2544.6,2544.4,5.538]
[1746937423441,0.07997796,2544.6,2544.4,6.2345985]
[1746937423645,0.07997796,2544.6,2544.5,2.765]
[1746937424412,4.17997796,2544.6,2544.5,2.765]
[1746937425652,4.17997796,2544.6,2544.2,1.38868435]
[1746937425817,4.99597796,2544.6,2544.3,5.537]
[1746937426022,4.99597796,2544.6,2544.1,0.03930075]
[1746937426246,4.99597796,2544.6,2544.2,5.537]